bitfinex/quotes_ETHUSD_20240709
["timestamp","ask_amount","ask_price","bid_price","bid_amount"]
[1720512517644,2.56794575,3064.4,3063.8,3.26381]
[1720512517845,0.50617689,3064.4,3063.9,3.81379]
[1720512518069,3.0,3064.6,3063.9,3.81379]
[1720512518254,2.06169092,3064.5,3063.9,3.81379]
[1720512518583,4.35268685,3064.8,3063.9,3.81379]
[1720512518755,2.06169306,3064.7,3064.2,3.26348]
[1720512518956,2.06169306,3064.6,3064.2,3.26348]
[1720512519172,1.35268685,3064.9,3064.2,3.26348]
[1720512519482,2.73857496,3064.8,3064.2,6.52691]
[1720512519778,2.06148695,3064.7,3064.2,6.52691]
[1720512519981,2.06144106,3064.6,3064.2,6.52691]
[1720512520189,1.35268685,3064.9,3064.3,3.26337]
[1720512520358,2.06150137,3064.8,3064.3,3.26337]
[1720512520548,1.13064837,3064.7,3064.3,3.26337]
[1720512520751,3.0,3064.8,3064.3,3.26337]
[1720512520975,3.0,3064.9,3064.3,3.26337]
[1720512521285,2.06135349,3064.8,3064.3,3.26337]
[1720512521458,2.06135349,3064.7,3064.3,3.26337]
[1720512521657,5.22395554,3064.9,3064.3,3.26337]
[1720512521866,2.06138935,3064.8,3064.3,3.26337]
[1720512522075,2.06138935,3064.7,3064.2,3.26343]
[1720512522252,3.0,3064.7,3064.2,3.26343]
[1720512522446,0.3411936,3064.6,3064.2,6.52682]
[1720512522652,0.3411936,3064.6,3064.2,3.26339]
[1720512522854,0.3411936,3064.6,3064.2,6.47031]
[1720512523552,0.3411936,3064.6,3064.2,3.20689]
[1720512523869,0.3411936,3064.6,3064.2,6.47031]
[1720512524284,0.3411936,3064.6,3064.2,3.20689]
[1720512525148,0.3411936,3064.6,3064.2,6.47033]
[1720512525373,0.3411936,3064.6,3064.3,3.26337]
[1720512525585,0.3411936,3064.6,3064.5,3.26317]
[1720512526380,0.3411936,3064.6,3064.5,6.52634]
[1720512526544,0.3411936,3064.6,3064.5,7.07634]
[1720512529654,0.3411936,3064.6,3064.5,10.33951]
[1720512529871,1.35320833,3065.5,3064.6,2.3048]
[1720512530087,7.36,3066.6,3066.1,3.26145]
[1720512530365,1.12999797,3066.5,3066.3,1.711]
[1720512530576,1.35415511,3066.8,3066.3,1.711]
[1720512530577,1.35415511,3067.1,3066.4,0.55]
[1720512530763,7.36,3067.2,3066.7,1.711]
[1720512531456,7.36,3067.2,3066.8,0.61521265]
[1720512531678,7.36,3067.8,3066.9,3.26059]
[1720512531893,0.21425479,3067.7,3066.9,3.26059]
[1720512532069,7.36,3067.8,3067.0,3.2605]
[1720512532271,8.51129289,3067.8,3067.0,3.2605]
[1720512532485,1.69202886,3068.3,3067.2,3.26029]
[1720512532791,0.21424172,3068.2,3067.3,3.26019]
[1720512533288,0.34134364,3068.1,3067.3,3.26019]
[1720512533701,0.34134364,3068.1,3067.3,3.586209]
[1720512534019,0.34134364,3068.1,3067.5,3.25997]
[1720512534790,0.34134364,3068.1,3067.6,3.25986]
[1720512534992,0.34134364,3068.1,3067.8,3.25965]
[1720512535161,0.34134364,3068.1,3067.9,3.25953]
[1720512535359,0.34134364,3068.1,3068.0,3.25945]
[1720512535559,0.34134364,3068.1,3068.0,3.80945]
[1720512536295,0.34134364,3068.1,3068.0,9.4915]
[1720512536470,7.36,3068.9,3068.4,3.25895]
[1720512536676,7.36,3069.5,3068.4,3.25895]
[1720512537194,0.34138158,3068.8,3068.4,3.25895]
[1720512537395,10.798,3069.5,3068.0,3.80944]
[1720512537699,6.77939304,3069.4,3068.1,0.55]
[1720512537911,6.77939304,3069.4,3068.1,3.8093]
[1720512537912,1.4139393,3069.3,3068.1,3.8093]
[1720512538268,7.721,3069.1,3067.3,0.326019]
[1720512538468,7.721,3069.1,3067.5,3.2599]
[1720512538699,3.438,3068.9,3067.4,3.25998]
[1720512539026,3.438,3068.9,3067.5,3.25998]
[1720512539027,3.0,3068.8,3067.5,3.25998]
[1720512539218,3.6438,3068.8,3067.5,3.25998]
[1720512539588,3.6438,3068.8,3067.5,3.25994]
[1720512539920,9.0428,3068.8,3067.1,3.2604]
[1720512540071,3.0,3068.7,3067.1,3.2604]
[1720512540409,3.0,3068.7,3066.6,2.276]
[1720512540410,4.34228,3068.6,3066.8,3.26066]
[1720512540620,5.76,3068.4,3066.8,3.26066]
[1720512540769,5.76,3068.4,3067.0,3.26047]
[1720512540969,3.0,3068.3,3067.1,3.26039]
[1720512541205,1.0721,3068.3,3067.1,0.06520534]
[1720512541408,5.322,3068.4,3067.2,3.26029]
[1720512541705,3.0,3068.3,3067.3,3.26013]
[1720512541912,2.322,3068.4,3067.3,3.81013]
[1720512541913,0.5322,3068.2,3067.3,3.81013]
[1720512542100,3.0,3068.3,3067.3,3.81013]
[1720512542488,2.322,3068.4,3067.3,0.55]
[1720512542889,2.322,3068.4,3066.5,3.26099]
[1720512542890,5.399,3068.3,3066.5,3.26094]
[1720512543082,3.438,3068.1,3066.7,3.26082]
[1720512543682,6.438,3068.0,3066.7,3.26082]
[1720512543884,6.438,3068.0,3066.8,0.06521068]
[1720512543885,3.0,3068.0,3066.8,0.06521068]
[1720512544200,3.2322,3068.3,3067.3,3.26018]
[1720512544378,0.2322,3068.3,3067.3,3.26018]
[1720512544584,0.25542,3068.2,3067.1,3.26033]
[1720512545094,0.25542,3068.2,3067.2,0.55]
[1720512545293,0.25542,3068.2,3066.7,0.326085]
[1720512545622,0.25542,3068.2,3066.7,3.26075]
[1720512546201,3.438,3068.1,3066.5,3.26096]
[1720512546437,6.438,3068.0,3066.5,6.52192]
[1720512546593,3.6438,3067.9,3066.6,3.26092]
[1720512547119,3.6438,3067.9,3066.7,3.26083]
[1720512547715,3.6438,3067.9,3065.7,3.2618]
[1720512547716,5.399,3067.4,3065.7,3.2618]
[1720512547925,5.399,3067.2,3065.5,5.53802]
[1720512548138,3.438,3067.0,3065.7,3.26189]
[1720512548424,3.438,3067.0,3065.5,5.53802]
[1720512548633,3.6438,3066.9,3065.5,9.680079]
[1720512548914,3.0,3066.9,3065.6,3.26199]
[1720512549532,3.0,3066.9,3065.2,3.26241]
[1720512549533,3.438,3066.7,3065.2,3.26241]
[1720512549823,3.0,3066.6,3065.5,3.26201]
[1720512550115,3.0,3066.7,3065.4,3.26212]
[1720512550620,3.0,3066.7,3065.4,6.52426]
[1720512550823,5.399,3066.4,3064.1,12.1978]
[1720512551040,5.399,3066.4,3064.5,3.26307]
[1720512551183,3.438,3066.2,3064.6,3.26299]
[1720512551382,0.6438,3066.1,3064.6,3.589289]
[1720512551581,3.6438,3066.1,3064.6,3.589289]
[1720512552429,6.438,3066.2,3064.7,0.55]
[1720512552803,0.34149142,3066.0,3064.7,0.55]
[1720512553008,0.34149142,3066.0,3064.7,3.81294]
[1720512553610,2.4634,3065.2,3063.7,3.26396]
[1720512553797,3.438,3064.7,3063.0,3.26476]
[1720512553998,3.438,3064.7,3062.6,0.06528043]
[1720512554199,3.0,3064.6,3063.2,3.26455]
[1720512554700,3.0,3064.6,3063.3,0.06528042]
[1720512554898,2.4634,3065.2,3063.4,3.26434]
[1720512555201,2.4634,3065.2,3063.6,3.36468634]
[1720512555428,2.4634,3065.2,3063.6,0.10062634]
[1720512555628,0.24634,3065.1,3063.6,0.10062634]
[1720512555801,5.399,3064.5,3063.6,0.10062634]
[1720512556207,2.4226,3064.9,3063.6,0.10062634]
[1720512556208,3.438,3064.3,3063.6,0.10062634]
[1720512556511,3.438,3064.1,3063.6,0.10062634]
[1720512556838,6.438,3064.0,3063.6,0.10062634]
[1720512557001,3.0,3064.0,3063.6,0.10062634]
[1720512557202,1.961,3064.0,3063.6,0.10062634]
[1720512557418,3.43666,3064.1,3063.6,0.10062634]
[1720512558704,7.36,3064.6,3063.6,0.10062634]
[1720512560137,3.0,3064.5,3063.6,0.10062634]
[1720512560848,7.36,3065.0,3063.7,0.55]
[1720512561138,7.36,3065.0,3063.8,0.06526732]
[1720512561322,2.3702,3065.9,3063.8,0.06526732]
[1720512561323,7.36,3065.5,3064.3,3.26338]
[1720512561548,2.3702,3065.9,3064.3,3.26338]
[1720512561549,0.45392914,3065.8,3064.4,0.9415951]
[1720512561737,0.45392914,3065.8,3064.4,0.876338]
[1720512562041,1.961,3065.6,3063.4,3.26425]
[1720512562251,3.438,3064.9,3063.6,0.10062634]
[1720512563349,3.438,3064.7,3063.6,0.10062634]
[1720512563558,3.6438,3064.6,3063.6,0.10062634]
[1720512564345,5.399,3064.5,3063.6,0.10062634]
[1720512564845,3.0,3064.4,3063.6,0.10062634]
[1720512565052,6.438,3064.4,3063.6,0.10062634]
[1720512565249,3.438,3064.4,3063.6,0.10062634]
[1720512565457,3.3438,3064.3,3063.6,0.10062634]
[1720512565944,2.3702,3065.0,3063.6,0.10062634]
[1720512565945,3.0,3064.9,3063.6,0.10062634]
[1720512566253,5.3702,3065.0,3063.6,3.36474634]
[1720512566456,7.36,3065.4,3063.9,3.26379]
[1720512566743,7.36,3065.4,3063.7,3.81393]
[1720512566946,7.36,3065.4,3063.8,3.88836563]
[1720512566947,3.438,3065.2,3063.8,3.88836563]
[1720512567113,3.438,3065.2,3063.9,0.55]
[1720512567540,0.736,3065.3,3063.9,3.8138]
[1720512567737,3.736,3065.3,3063.9,3.8138]
[1720512567942,3.736,3065.3,3064.0,0.45035248]
[1720512568161,0.34161464,3065.2,3064.0,0.45035248]
[1720512568306,0.34161464,3065.2,3064.1,3.81358]
[1720512569715,0.34161464,3065.2,3064.2,0.06526359]
[1720512570261,0.34161464,3065.2,3064.5,3.26316]
[1720512570555,10.24661291,3065.7,3064.6,3.915664]
[1720512570853,0.34164686,3065.4,3064.6,3.915664]
[1720512571750,0.34164686,3065.4,3064.6,0.652634]
[1720512572046,3.77964686,3065.4,3063.8,3.26385]
[1720512572253,3.77964686,3065.4,3063.8,3.26383]
[1720512572413,6.438,3065.3,3063.7,3.26398]
[1720512572619,7.01206469,3065.3,3063.8,0.89586763]
[1720512572823,7.01206469,3065.3,3063.9,3.26374]
[1720512573128,7.01206469,3065.3,3063.9,6.52748]
[1720512573422,0.73537116,3065.2,3064.0,0.40918433]
[1720512573817,0.73537116,3065.2,3063.7,3.26398]
[1720512573818,3.438,3065.1,3063.7,3.26394]
[1720512574157,3.0,3065.0,3063.8,6.52776]
[1720512574321,3.0,3065.0,3063.8,3.26384]
[1720512574665,3.0,3065.0,3063.9,3.590154]
[1720512574809,3.73537116,3065.2,3063.9,3.26377]
[1720512575417,3.438,3065.1,3063.7,3.26394]
[1720512575614,3.0,3065.0,3063.8,3.81389]
[1720512576840,6.438,3065.2,3063.8,3.81389]
[1720512577042,8.399,3065.2,3063.6,0.10062634]
[1720512577239,7.801,3065.0,3063.6,0.10062634]
[1720512577557,5.84,3065.0,3063.6,0.10062634]
[1720512577755,3.0,3064.9,3063.7,3.26401]
[1720512577928,3.0,3064.9,3063.7,3.92689663]
[1720512577929,0.884,3064.8,3063.7,3.92689663]
[1720512578315,0.884,3064.8,3063.7,0.66288663]
[1720512579148,0.884,3064.8,3063.6,3.36469634]
[1720512579734,0.884,3064.8,3063.7,3.26401]
[1720512579965,0.884,3064.8,3063.8,3.26391]
[1720512581258,0.884,3064.8,3063.9,3.2638]
[1720512581573,0.884,3064.8,3063.9,3.916581]
[1720512582376,0.884,3064.8,3064.0,3.2637]
[1720512582538,3.0,3064.9,3064.0,3.2637]
[1720512582734,2.402,3065.0,3064.1,3.26356]
[1720512582934,2.402,3065.0,3064.2,3.26343]
[1720512583383,2.402,3065.0,3064.1,3.26356]
[1720512583667,2.402,3065.0,3064.1,3.26353]
[1720512583873,2.402,3065.0,3064.1,3.9815371]
[1720512584069,2.402,3065.0,3063.6,3.36467634]
[1720512584070,2.402,3065.0,3063.9,3.26374]
[1720512584788,2.402,3065.0,3063.9,6.52748]
[1720512585088,2.402,3065.0,3064.0,3.26369]
[1720512585385,2.402,3065.0,3063.6,0.10062634]
[1720512585585,2.402,3065.0,3063.7,3.81393]
[1720512585758,0.884,3064.9,3063.7,3.81393]
[1720512585954,4.663653,3064.9,3063.6,3.36474634]
[1720512586174,3.0,3064.8,3063.6,3.36474634]
[1720512586488,3.0,3064.8,3063.6,0.10062634]
[1720512586714,0.7663653,3064.7,3063.6,0.10062634]
[1720512587019,0.7663653,3064.7,3063.6,3.36469634]
[1720512587310,3.0,3064.8,3063.6,3.36469634]
[1720512587311,3.0,3064.8,3063.9,3.26375]
[1720512587496,4.225653,3064.9,3063.9,3.26375]
[1720512588392,7.663653,3064.9,3063.7,3.26396]
[1720512588875,4.225653,3064.9,3063.8,3.26386]
[1720512589076,4.225653,3064.9,3063.9,3.26379]
[1720512589271,3.341653,3064.9,3064.2,3.26341]
[1720512589671,3.341653,3064.9,3064.1,3.26354]
[1720512589930,3.341653,3064.9,3063.9,3.26375]
[1720512590212,3.341653,3064.9,3064.0,3.2637]
[1720512591378,3.341653,3064.9,3064.0,3.26369]
[1720512591778,3.341653,3064.9,3064.0,3.90589733]
[1720512592927,3.341653,3064.9,3064.0,7.16954733]
[1720512593092,3.341653,3064.9,3064.0,3.90585733]
[1720512593294,3.341653,3064.9,3064.0,0.64220733]
[1720512593786,3.341653,3064.9,3064.0,3.90590733]
[1720512593986,3.341653,3064.9,3064.0,7.16955733]
[1720512594394,3.341653,3064.9,3064.0,3.90585733]
[1720512594932,3.9160183,3064.9,3064.0,3.26365]
[1720512595443,0.21533324,3064.8,3064.0,3.26365]
[1720512596236,0.21533324,3064.8,3063.8,3.26382]
[1720512596604,0.21533324,3064.8,3063.9,3.2638]
[1720512596803,0.21533324,3064.8,3063.9,3.916525]
[1720512597026,0.21533324,3064.8,3063.9,6.5275]
[1720512597342,0.21533324,3064.8,3063.9,3.26375]
[1720512597709,0.21533324,3064.8,3063.6,0.10062634]
[1720512597938,0.21533324,3064.8,3063.8,3.26387]
[1720512598113,0.21533324,3064.8,3063.7,3.81402]
[1720512598435,0.41313515,3064.7,3063.6,0.10062634]
[1720512598598,0.21547605,3064.6,3063.6,3.36474634]
[1720512598944,0.21547605,3064.5,3063.6,3.36474634]
[1720512599101,0.21547605,3064.4,3063.6,4.02764297]
[1720512599340,0.21547605,3064.3,3063.7,3.26399]
[1720512599570,3.0,3064.8,3063.9,6.52753]
[1720512599776,0.21535998,3064.7,3064.0,3.26369]
[1720512599967,0.21535998,3064.6,3064.0,3.26369]
[1720512600170,0.21535998,3064.5,3064.0,3.90584533]
[1720512600346,0.21535998,3064.4,3064.0,3.26369]
[1720512600688,3.9160183,3064.9,3064.0,3.26369]
[1720512600860,0.21533502,3064.8,3064.1,3.26356]
[1720512601058,0.21534005,3064.7,3064.1,3.26356]
[1720512601381,0.21534005,3064.6,3064.1,3.26356]
[1720512601580,0.34170356,3064.8,3064.1,3.26356]
[1720512601581,0.21533613,3064.5,3064.1,3.26356]
[1720512601788,0.21533613,3064.4,3064.1,3.916259]
[1720512601991,7.70170356,3064.8,3064.1,6.52705]
[1720512602195,3.21537403,3064.7,3064.1,3.26352]
[1720512602397,0.21537403,3064.6,3064.1,3.26352]
[1720512602903,0.21537403,3064.6,3064.1,7.179786]
[1720512603097,0.21537403,3064.6,3064.2,0.06526648]
[1720512603254,0.34170356,3064.8,3064.7,3.26296]
[1720512603867,0.34170356,3064.8,3064.3,0.55]
[1720512604068,0.34170356,3064.8,3064.4,3.26327]
[1720512604267,0.34170356,3064.8,3064.2,3.26348]
[1720512604268,0.34170356,3064.8,3064.2,3.2634]
[1720512604490,0.21520205,3064.7,3064.2,3.2634]
[1720512604760,0.21520205,3064.7,3064.3,3.26338]
[1720512605256,2.70670205,3064.7,3063.7,3.26397]
[1720512605458,0.21520205,3064.6,3063.8,3.26382]
[1720512605681,0.21520205,3064.6,3063.9,3.2638]
[1720512606852,0.21520205,3064.6,3063.9,3.916487]
[1720512607052,0.21520205,3064.6,3064.2,3.26343]
[1720512607297,0.34170356,3064.8,3064.4,3.26321]
[1720512607603,0.21513809,3064.7,3064.4,6.52643]
[1720512607759,0.21513809,3064.7,3064.6,3.26306]
[1720512608093,0.34170356,3064.8,3064.7,3.26296]
[1720512609087,0.34170356,3064.8,3064.2,3.26343]
[1720512609303,0.34170356,3064.8,3064.0,3.26363]
[1720512609304,0.21518325,3064.7,3064.0,3.26363]
[1720512609614,0.21518325,3064.7,3064.1,3.26353]
[1720512609762,0.21518325,3064.7,3064.1,3.916244]
[1720512609963,0.21518325,3064.7,3064.1,3.26353]
[1720512610196,0.21518325,3064.7,3064.4,3.26327]
[1720512610405,0.21518325,3064.7,3064.4,6.52643]
[1720512610763,0.34170356,3064.8,3064.4,3.26321]
[1720512610970,0.21520718,3064.7,3064.2,6.52684]
[1720512611289,0.21522021,3064.6,3064.3,3.26337]
[1720512611492,0.21522021,3064.5,3064.4,3.26328]
[1720512611692,0.34170356,3064.8,3064.4,3.26328]
[1720512611902,0.34170356,3064.8,3064.2,6.52679]
[1720512612204,0.21525122,3064.7,3064.2,3.26338]
[1720512612815,0.21525122,3064.7,3064.2,3.589718]
[1720512613214,0.21525122,3064.7,3064.0,6.52731]
[1720512613380,0.21525122,3064.7,3064.1,3.26359]
[1720512613590,0.21525122,3064.7,3064.0,6.52729]
[1720512613794,0.21525122,3064.7,3064.0,3.26364]
[1720512614115,0.2152356,3064.6,3064.0,3.26364]
[1720512614344,0.2152356,3064.5,3064.0,3.26364]
[1720512614499,0.2152356,3064.4,3064.0,3.916388]
[1720512614699,2.03915984,3064.8,3064.1,3.26359]
[1720512614898,2.46583124,3064.7,3063.9,3.26381]
[1720512615096,0.21523124,3064.6,3063.9,3.26381]
[1720512615822,0.21523124,3064.6,3063.9,6.52757]
[1720512615994,0.21523124,3064.6,3063.9,3.916517]
[1720512616198,0.21523124,3064.6,3064.2,3.26348]
[1720512616733,0.21523124,3064.5,3064.3,3.26338]
[1720512616957,0.34170356,3064.8,3064.4,0.652686]
[1720512617156,0.21513709,3064.7,3064.4,3.915956]
[1720512617314,0.21517072,3064.6,3064.4,3.915956]
[1720512617513,0.34170356,3064.8,3064.4,3.915876]
[1720512617758,0.21518316,3064.7,3064.6,3.26306]
[1720512617931,0.34170356,3064.8,3064.6,3.26306]
[1720512618132,0.34170356,3064.8,3064.6,6.52612]
[1720512618133,0.21516915,3064.7,3064.6,6.52612]
[1720512618333,0.34170356,3064.8,3064.7,3.26296]
[1720512618522,0.55686094,3064.8,3064.7,3.26296]
[1720512618718,0.34170356,3064.8,3064.7,3.26296]
[1720512619558,0.34170356,3064.8,3064.7,6.52592]
[1720512619869,0.34170356,3064.8,3064.7,7.17835996]
[1720512621122,0.34170356,3064.8,3064.7,10.99131996]
[1720512621321,7.36,3065.8,3065.6,3.26198]
[1720512621575,1.69706402,3066.2,3065.7,3.26184]
[1720512621725,0.21493985,3066.1,3065.8,3.26172]
[1720512622062,0.21493985,3066.0,3065.8,3.26172]
[1720512622272,19.85,3066.3,3065.7,3.26183]
[1720512622423,0.21489102,3066.2,3065.9,3.26167]
[1720512622625,4.91049445,3066.9,3066.0,0.06522568]
[1720512622626,0.39173212,3066.9,3066.0,0.06522568]
[1720512622860,1.69605802,3068.1,3067.4,3.26001]
[1720512623022,9.8488,3069.1,3066.5,2.2842]
[1720512623023,1.69605802,3068.5,3067.5,3.25988]
[1720512623222,7.6703544,3069.1,3067.0,3.32567025]
[1720512623223,0.34152274,3068.3,3067.0,3.32567025]
[1720512623464,1.8750032,3068.3,3067.1,0.55]
[1720512623662,1.51985046,3068.2,3067.4,3.26002]
[1720512623876,2.4888,3069.1,3067.4,3.26002]
[1720512624072,5.399,3068.9,3067.4,3.26002]
[1720512624386,3.438,3068.7,3067.3,6.52032]
[1720512624598,0.24888,3069.0,3067.3,3.26016]
[1720512624886,2.4888,3069.1,3068.0,3.25944]
[1720512625191,2.4888,3069.1,3067.9,3.25953]
[1720512625668,2.98729636,3069.1,3068.0,3.25943]
[1720512625869,0.64252964,3069.0,3068.1,3.25934]
[1720512626077,2.4888,3069.1,3068.1,3.25934]
[1720512626277,2.4888,3069.1,3068.2,3.25923]
[1720512626592,0.49849636,3069.0,3068.1,3.25934]
[1720512626764,0.29872964,3068.9,3068.1,3.25934]
[1720512627969,0.29872964,3068.9,3066.5,2.44854119]
[1720512628175,0.29872964,3068.9,3067.7,3.25973]
[1720512628176,0.34112103,3068.8,3067.7,3.25973]
[1720512628482,0.34112103,3068.8,3067.4,3.26007]
[1720512628483,4.27761739,3068.8,3067.4,3.26007]
[1720512628691,4.27761739,3068.8,3067.1,3.26031]
[1720512628692,3.6537347,3068.7,3067.1,3.26031]
[1720512628865,0.49849636,3068.6,3067.3,3.26019]
[1720512629047,5.89749636,3068.6,3066.5,2.2842]
[1720512629245,5.9101,3068.4,3067.0,3.26046]
[1720512629493,5.9101,3068.4,3066.9,3.26057]
[1720512629786,5.9101,3068.4,3067.6,3.25977]
[1720512629787,2.4721,3068.4,3067.6,3.25977]
[1720512629991,0.41522311,3068.5,3067.0,2.428]
[1720512630199,3.0,3068.7,3067.8,3.25964]
[1720512630547,3.0,3068.7,3067.9,3.25953]
[1720512630857,3.0,3068.7,3067.6,3.25985]
[1720512631058,3.0,3068.7,3067.4,3.26008]
[1720512631309,3.0,3068.7,3067.5,3.25996]
[1720512631310,1.3798,3068.6,3067.5,3.25996]
[1720512631446,1.3798,3068.6,3067.3,3.26017]
[1720512631654,6.7788,3068.6,3066.9,3.2606]
[1720512631973,3.438,3068.4,3067.0,3.2604]
[1720512632494,3.438,3068.1,3066.5,3.26104]
[1720512632791,6.438,3068.0,3066.5,3.26104]
[1720512633200,6.438,3068.0,3066.6,3.26092]
[1720512633500,3.0,3068.0,3067.0,0.00301712]
[1720512633650,3.0,3068.2,3067.0,0.00301712]
[1720512633851,2.81354279,3068.3,3067.4,3.26008]
[1720512634050,2.81354279,3068.3,3067.0,3.26347712]
[1720512634051,2.4721,3068.3,3067.0,0.00301712]
[1720512634353,4.02664644,3068.2,3067.0,0.00301712]
[1720512634577,3.68521,3068.2,3067.0,0.00301712]
[1720512634848,0.34143897,3068.1,3067.0,0.00301712]
[1720512635455,3.34143897,3068.1,3067.0,0.00301712]
[1720512635651,3.34143897,3068.1,3067.0,3.26352712]
[1720512635876,0.34143897,3068.1,3067.1,3.2603]
[1720512636083,0.34143897,3068.1,3067.0,0.00301712]
[1720512636395,0.34143897,3068.1,3067.5,3.25998]
[1720512636757,0.34143897,3068.1,3067.6,3.25987]
[1720512636952,0.34143897,3068.1,3067.7,3.2597]
[1720512638389,0.34143897,3068.1,3067.8,3.25965]
[1720512638984,0.34143897,3068.1,3067.9,3.25953]
[1720512639867,0.34143897,3068.1,3067.6,3.25986]
[1720512640179,0.34143897,3068.1,3067.8,3.25965]
[1720512642657,0.34143897,3068.1,3067.4,3.26008]
[1720512642991,0.34143897,3068.1,3067.4,3.25999]
[1720512643220,0.34143897,3068.1,3066.9,3.26055]
[1720512643532,0.34143897,3068.1,3066.1,7.43]
[1720512643533,2.4528,3068.0,3066.7,3.26083]
[1720512643683,0.2794239,3067.9,3066.9,3.26055]
[1720512644018,0.62088249,3067.9,3067.2,3.26023]
[1720512644225,0.62088249,3067.9,3067.0,3.26041]
[1720512644226,3.34145859,3067.9,3067.0,3.26041]
[1720512644383,3.34145859,3067.9,3067.1,3.2604]
[1720512644582,0.57942586,3067.8,3067.1,3.2604]
[1720512645026,0.57942586,3067.8,3067.2,3.26028]
[1720512645325,3.34145859,3067.9,3067.3,3.26016]
[1720512645493,0.34145859,3067.9,3067.4,3.26007]
[1720512645693,9.8277,3068.5,3067.4,3.26007]
[1720512646016,0.34140692,3068.2,3067.6,3.25985]
[1720512646625,0.34140692,3068.2,3067.6,3.25981]
[1720512647089,0.34140692,3068.2,3067.8,3.25964]
[1720512647928,0.34140692,3068.2,3067.6,3.25978]
[1720512648219,0.34140692,3068.2,3067.5,3.25997]
[1720512648985,0.67554761,3068.2,3066.3,9.8799]
[1720512649218,0.67554761,3068.2,3067.2,3.26024]
[1720512649921,0.67554761,3068.2,3066.8,3.26066]
[1720512650127,0.67554761,3068.2,3067.0,3.2605]
[1720512650422,4.11354761,3068.2,3066.9,0.00517641]
[1720512650625,3.41135476,3068.1,3066.9,3.26061]
[1720512650837,0.41135476,3068.1,3067.0,0.07034066]
[1720512651042,0.67554761,3068.2,3067.0,0.07034066]
[1720512651454,0.67554761,3068.2,3067.2,3.26029]
[1720512652109,0.67554761,3068.2,3066.9,3.26055]
[1720512652451,0.67554761,3068.2,3067.1,3.26035]
[1720512652938,0.67554761,3068.2,3067.0,3.26051]
[1720512653505,0.67554761,3068.2,3067.0,3.26045]
[1720512653824,0.67554761,3068.2,3066.9,3.26059]
[1720512654157,2.4321,3068.1,3066.9,0.00255843]
[1720512654304,0.65456476,3068.0,3066.9,0.01098192]
[1720512654505,0.65456476,3068.0,3066.9,0.07380201]
[1720512654741,3.65456476,3068.0,3066.7,3.26082]
[1720512655046,0.60866648,3067.9,3066.8,3.33451682]
[1720512655337,0.60866648,3067.9,3066.9,0.07380441]
[1720512655543,0.60866648,3067.9,3066.9,0.07380201]
[1720512655743,0.60866648,3067.9,3066.8,3.26071]
[1720512655953,0.42632312,3067.8,3066.9,0.02779902]
[1720512657046,2.4321,3067.7,3066.5,3.26103]
[1720512657460,2.4321,3067.7,3066.5,3.26570357]
[1720512657751,0.28584231,3067.6,3066.5,3.26570357]
[1720512657950,3.28584231,3067.6,3066.5,3.26570357]
[1720512658342,3.28584231,3067.6,3066.5,0.00467357]
[1720512658657,3.28584231,3067.6,3066.4,3.28631819]
[1720512658963,8.68484231,3067.6,3066.4,0.02520819]
[1720512659124,3.438,3067.4,3066.0,3.26151]
[1720512659324,3.438,3067.4,3066.1,0.03735025]
[1720512659559,3.0,3067.3,3066.1,3.26146]
[1720512659760,3.63363942,3067.3,3066.1,3.26146]
[1720512660075,3.63363942,3067.3,3066.2,0.07382126]
[1720512660076,0.63363942,3067.3,3066.2,0.07382126]
[1720512660367,2.3266,3067.5,3066.7,3.26076]
[1720512660663,2.3266,3067.5,3066.6,3.26084]
[1720512660819,2.3266,3067.5,3066.7,3.26077]
[1720512661021,2.3266,3067.5,3066.8,3.26071]
[1720512661313,3.29526,3067.5,3066.2,3.2613]
[1720512661518,3.29526,3067.5,3066.4,3.26111]
[1720512661821,3.29526,3067.5,3066.5,3.26101]
[1720512662332,2.3266,3067.5,3066.7,3.26073]
[1720512663151,5.3266,3067.5,3066.2,3.2613]
[1720512663349,5.3266,3067.5,3066.4,3.26105]
[1720512663560,1.26866,3067.4,3066.4,3.26105]
[1720512664419,1.26866,3067.4,3066.5,3.26103]
[1720512664631,5.3266,3067.5,3066.5,3.26103]
[1720512665233,5.3266,3067.5,3066.5,3.32624095]
[1720512665428,5.3266,3067.5,3066.7,3.26082]
[1720512665951,2.3266,3067.5,3066.8,3.26065]
[1720512666431,5.6358,3068.1,3067.2,3.26023]
[1720512666614,5.6358,3068.1,3067.4,3.26007]
[1720512667421,5.6358,3068.1,3067.2,3.26023]
[1720512667422,0.21480767,3068.0,3067.3,3.26013]
[1720512667817,6.93538,3068.1,3067.3,3.26013]
[1720512668015,3.2148408,3068.0,3067.1,6.52063]
[1720512668251,0.21484302,3067.9,3067.2,3.26027]
[1720512668968,5.6358,3068.1,3067.4,3.26001]
[1720512669118,2.3858,3068.1,3067.6,3.2598]
[1720512669318,7.36,3068.2,3067.6,3.2598]
[1720512669319,7.36,3068.2,3067.6,3.25979]
[1720512669522,7.36,3068.2,3067.6,6.51958]
[1720512669720,7.36,3068.2,3067.9,3.25953]
[1720512669957,7.36,3068.2,3068.0,3.25943]
[1720512670466,7.36,3068.2,3068.0,6.51881]
[1720512670968,2.2879,3068.9,3068.4,3.25902]
[1720512671149,0.21481324,3068.8,3068.4,3.25902]
[1720512671460,2.2879,3068.9,3068.4,3.25902]
[1720512671972,2.2879,3068.9,3068.4,6.51798]
[1720512672128,7.36,3069.1,3068.5,3.2589]
[1720512672721,7.36,3069.1,3068.3,6.51813]
[1720512672939,0.21477416,3069.0,3068.3,3.25903]
[1720512673128,0.21477416,3069.0,3068.5,3.25887]
[1720512673326,7.36,3069.1,3068.5,3.25887]
[1720512673551,12.6505,3069.4,3068.6,3.25874]
[1720512673871,0.74379785,3069.3,3068.5,3.25883]